bitfinex/quotes_SOLUSD_20241009
["timestamp","ask_amount","ask_price","bid_price","bid_amount"]
[1728483797437,7.0512,141.82,141.78,7.053]
[1728483798699,15.3226,141.85,141.79,1.66141589]
[1728483798700,27.0503,141.84,141.79,1.66141589]
[1728483798921,22.3723,141.85,141.8,17.6301]
[1728483799134,6.1759,141.89,141.83,7.0504]
[1728483799135,7.049,141.87,141.83,7.0504]
[1728483799420,20.0,141.88,141.84,7.05]
[1728483799421,7.0483,141.88,141.84,7.05]
[1728483799634,7.0483,141.88,141.83,0.12549]
[1728483799823,7.0483,141.88,141.83,7.17579]
[1728483800233,22.4383,141.89,141.82,0.12549]
[1728483800405,29.4861,141.89,141.85,7.0496]
[1728483800607,22.4383,141.89,141.84,17.6251]
[1728483800800,7.0487,141.87,141.84,17.6251]
[1728483801000,7.0487,141.87,141.83,7.0506]
[1728483802720,40.0581,141.89,141.82,23.902374]
[1728483802932,22.4383,141.89,141.83,17.6264]
[1728483803511,29.4861,141.89,141.85,7.0496]
[1728483804228,17.6165,141.92,141.85,7.0496]
[1728483804401,7.0474,141.9,141.86,7.0487]
[1728483804600,27.047,141.91,141.86,7.0487]
[1728483804799,27.047,141.91,141.84,0.12549]
[1728483804800,21.9812,141.93,141.87,1.40969504]
[1728483805019,7.0463,141.92,141.88,7.048]
[1728483805231,21.9812,141.93,141.87,17.6213]
[1728483805412,7.0468,141.91,141.87,17.6213]
[1728483806219,7.0472,141.9,141.87,17.6213]
[1728483807641,7.0481,141.89,141.84,61.652864]
[1728483808028,7.0482,141.88,141.84,37.87598]
[1728483808412,7.0482,141.88,141.84,44.92598]
[1728483809433,7.0488,141.87,141.84,17.625]
[1728483810510,7.0488,141.87,141.81,6.1481]
[1728483810511,20.0,141.9,141.81,17.6283]
[1728483810838,7.0487,141.87,141.83,7.0503]
[1728483815340,7.0482,141.88,141.84,8.46005214]
[1728483816438,37.6164,141.92,141.84,1.40995214]
[1728483816650,7.0479,141.89,141.85,7.0496]
[1728483817520,21.9812,141.93,141.87,7.0483]
[1728483817521,7.047,141.91,141.87,7.0483]
[1728483817721,22.4351,141.93,141.89,7.0472]
[1728483817932,7.0467,141.91,141.87,8.45766716]
[1728483818238,7.0467,141.91,141.87,7.0483]
[1728483819818,20.0,141.95,141.87,1.40950817]
[1728483820019,7.0461,141.93,141.89,7.17309]
[1728483820242,15.0784,141.96,141.89,0.12549]
[1728483820444,7.0453,141.94,141.9,24.6647]
[1728483821951,7.0447,141.95,141.91,7.0465]
[1728483822329,7.0452,141.94,141.9,24.6647]
[1728483826426,6.3076,141.97,141.89,20.12549]
[1728483826745,7.0448,141.95,141.92,17.6154]
[1728483826952,6.3076,141.97,141.89,0.12549]
[1728483827124,7.0467,141.91,141.89,0.12549]
[1728483828247,7.0464,141.92,141.89,0.12549]
[1728483828422,7.0464,141.92,141.88,7.0481]
[1728483829631,20.0,141.94,141.87,0.12549]
[1728483829834,7.0468,141.91,141.87,7.17399]
[1728483830235,7.0468,141.91,141.88,0.12549]
[1728483830950,7.0463,141.92,141.88,7.0481]
[1728483831153,7.0453,141.94,141.9,7.047]
[1728483831355,7.0453,141.94,141.89,1.66044975]
[1728483831356,7.0451,141.95,141.91,7.0462]
[1728483831724,20.0,141.96,141.9,17.617]
[1728483831928,7.0453,141.94,141.9,24.664]
[1728483833061,37.6106,141.96,141.89,0.25098]
[1728483833246,7.0464,141.92,141.89,0.25098]
[1728483833953,37.6106,141.96,141.89,0.25098]
[1728483834160,7.0459,141.93,141.89,8.70790125]
[1728483835045,7.0459,141.93,141.89,7.29858]
[1728483835637,7.0459,141.93,141.89,8.70790296]
[1728483836057,7.0453,141.94,141.9,7.0468]
[1728483836359,7.0457,141.93,141.9,7.0468]
[1728483836663,7.0453,141.94,141.9,7.0468]
[1728483837860,7.0457,141.93,141.9,7.0468]
[1728483838059,20.0,141.96,141.89,24.91748]
[1728483838267,7.0463,141.92,141.89,24.91748]
[1728483839064,7.0463,141.92,141.89,17.86998]
[1728483840873,7.0463,141.92,141.89,24.91758]
[1728483841364,23.9174,141.97,141.89,24.91758]
[1728483841365,6.3076,141.97,141.92,0.12549]
[1728483841572,7.0439,141.97,141.93,7.0456]
[1728483841778,22.7952,141.99,141.95,7.29568]
[1728483842063,7.0429,141.99,141.96,1.408724]
[1728483842254,13.3046,142.01,141.97,7.0436]
[1728483842573,16.4586,142.02,141.97,17.73459]
[1728483842740,7.0422,142.0,141.97,17.73459]
[1728483843449,7.0422,142.0,141.97,19.1431582]
[1728483843645,7.0422,142.0,141.97,17.73459]
[1728483846168,7.0422,142.0,141.97,0.25098]
[1728483847748,7.0432,141.98,141.96,0.25098]
[1728483848771,34.0619,142.02,141.96,0.25098]
[1728483848978,16.4586,142.02,141.96,41.638364]
[1728483849145,23.6885,142.05,141.96,24.90548]
[1728483849146,7.0426,142.0,141.96,24.90548]
[1728483849553,7.0426,142.0,141.96,26.31408585]
[1728483849747,7.0426,142.0,141.96,24.90548]
[1728483849953,7.0426,142.0,141.96,26.31408562]
[1728483851785,20.0,142.04,141.96,19.27008562]
[1728483852078,7.0418,142.01,141.98,0.25098]
[1728483852568,7.0422,142.0,141.97,0.25098]
[1728483855462,7.0428,141.99,141.97,0.12549]
[1728483856169,7.0424,142.0,141.97,0.12549]
[1728483856564,17.6024,142.03,141.97,8.70316147]
[1728483856761,17.6024,142.03,141.97,7.29458]
[1728483856973,7.0423,142.0,141.97,7.29458]
[1728483857276,7.0423,142.0,141.97,0.25098]
[1728483858472,7.0423,142.0,141.97,0.12549]
[1728483859863,17.6024,142.03,141.97,0.12549]
[1728483860176,7.0428,141.99,141.97,0.12549]
[1728483860470,17.6024,142.03,141.97,0.12549]
[1728483860649,7.0424,142.0,141.97,0.12549]
[1728483861273,7.0419,142.01,141.97,8.57766906]
[1728483861849,7.0419,142.01,141.97,7.16909]
[1728483862043,17.6024,142.03,141.97,0.12549]
[1728483862258,7.0424,142.0,141.97,0.12549]
[1728483863649,7.0428,141.99,141.97,0.12549]
[1728483864847,36.6508,142.0,141.93,17.6131]
[1728483865049,7.045,141.95,141.91,7.0465]
[1728483865470,7.0456,141.94,141.9,24.6639]
[1728483865657,20.0,141.98,141.92,17.6153]
[1728483865853,6.5273,141.99,141.92,17.6153]
[1728483865854,7.0438,141.97,141.93,7.0455]
[1728483866770,6.5273,141.99,141.93,0.25098]
[1728483867274,16.6508,142.0,141.94,17.6126]
[1728483867452,16.6508,142.0,141.95,0.12549]
[1728483868151,7.0438,141.97,141.94,0.12549]
[1728483869185,7.0442,141.96,141.92,27.0458]
[1728483870565,16.6508,142.0,141.93,0.12549]
[1728483870764,7.0448,141.95,141.93,0.12549]
[1728483871373,7.0444,141.96,141.93,0.12549]
[1728483876490,17.6074,141.99,141.93,0.12549]
[1728483876666,7.0443,141.96,141.93,0.12549]
[1728483878175,27.043,141.99,141.95,7.0445]
[1728483878376,16.6508,142.0,141.95,7.0445]
[1728483878573,7.0433,141.98,141.94,24.6575]
[1728483878984,7.0438,141.97,141.93,7.29648]
[1728483879698,7.0433,141.98,141.94,8.45408399]
[1728483880072,7.0433,141.98,141.94,7.0452]
[1728483880268,7.0438,141.97,141.93,24.91058]
[1728483880590,34.2564,142.0,141.93,17.86508]
[1728483880773,7.0455,141.94,141.91,20.0]
[1728483881092,6.1679,141.98,141.91,20.0]
[1728483881291,7.0459,141.93,141.89,24.6664]
[1728483881683,7.0459,141.93,141.89,17.6192]
[1728483881889,7.0459,141.93,141.9,7.0472]
[1728483882097,17.6108,141.96,141.9,7.0472]
[1728483882274,6.1679,141.98,141.9,7.0472]
[1728483882275,7.0454,141.94,141.91,1.40916155]
[1728483882476,7.0448,141.95,141.91,1.40916155]
[1728483882705,7.0448,141.95,141.92,7.17169]
[1728483882923,27.044,141.97,141.92,8.58073986]
[1728483883378,7.0442,141.96,141.92,7.17169]
[1728483883779,7.0442,141.96,141.92,8.58073737]
[1728483883983,7.0442,141.96,141.92,7.17169]
[1728483884698,7.0438,141.97,141.93,8.45454916]
[1728483885478,7.0438,141.97,141.93,24.6597]
[1728483885682,6.1679,141.98,141.93,17.6142]
[1728483885882,7.0445,141.96,141.93,17.6142]
[1728483886396,7.0445,141.96,141.93,24.6598]
[1728483887097,6.1679,141.98,141.93,24.6598]
[1728483887288,7.0439,141.97,141.94,7.0452]
[1728483887486,7.0439,141.97,141.93,24.6598]
[1728483890400,7.0439,141.97,141.94,0.12549]
[1728483890615,7.0428,141.99,141.95,7.0447]
[1728483893191,7.0433,141.98,141.94,7.29598]
[1728483894090,16.6508,142.0,141.95,17.6117]
[1728483894413,7.0432,141.98,141.95,17.6117]
[1728483896103,7.0432,141.98,141.94,7.29588]
[1728483897507,16.6508,142.0,141.94,7.29608]
[1728483897807,7.0433,141.98,141.94,7.29608]
[1728483900508,7.0433,141.98,141.95,1.40874087]
[1728483900806,7.0433,141.98,141.94,7.29608]
[1728483901119,7.0433,141.98,141.95,1.40874059]
[1728483901290,7.0433,141.98,141.94,7.29608]
[1728483901905,16.6508,142.0,141.94,0.25098]
[1728483902105,7.0445,141.96,141.94,0.12549]
[1728483902315,26.1335,141.99,141.88,85.2546]
[1728483902628,7.0467,141.92,141.88,77.0477]
[1728483903485,15.2248,141.94,141.86,17.6221]
[1728483903687,7.047,141.91,141.87,7.0485]
[1728483903886,7.047,141.91,141.86,24.6711]
[1728483904194,20.0,141.92,141.84,70.0]
[1728483904384,7.0468,141.91,141.86,7.0488]
[1728483904580,21.2714,141.94,141.84,70.0]
[1728483904785,7.0486,141.88,141.83,24.6763]
[1728483905035,7.0476,141.9,141.85,17.6238]
[1728483905186,7.0465,141.92,141.86,1.40952331]
[1728483905380,7.0466,141.92,141.87,24.6695]
[1728483906113,7.0485,141.88,141.86,0.12549]
[1728483906320,7.0485,141.88,141.84,17.6247]
[1728483907509,7.0488,141.87,141.83,7.0505]
[1728483907821,20.0,141.93,141.81,17.6283]
[1728483907822,7.0495,141.86,141.81,17.6283]
[1728483907993,7.0495,141.86,141.81,24.6798]
[1728483908319,7.0495,141.86,141.81,17.6283]
[1728483908516,7.0495,141.86,141.82,7.0511]
[1728483908719,15.659,141.88,141.81,17.6283]
[1728483908720,7.0498,141.85,141.81,17.6283]
[1728483908920,7.0498,141.85,141.82,20.0]
[1728483909215,7.0498,141.85,141.83,0.25098]
[1728483909612,7.0493,141.86,141.83,0.25098]
[1728483910061,7.0488,141.87,141.83,7.30158]
[1728483910322,15.659,141.88,141.84,1.40997778]
[1728483910533,35.2507,141.91,141.85,0.25098]
[1728483910824,22.2978,141.91,141.87,7.0486]
[1728483911429,6.0466,141.94,141.87,7.0486]
[1728483911430,7.0463,141.92,141.88,7.0481]
[1728483911927,7.0457,141.93,141.89,7.0475]
[1728483912505,6.0466,141.94,141.9,7.047]
[1728483912827,16.5171,141.95,141.9,7.17249]
[1728483913010,7.0452,141.94,141.9,7.17249]
[1728483913720,16.5171,141.95,141.9,0.12549]
[1728483913721,7.0457,141.93,141.9,0.12549]
[1728483914641,16.5171,141.95,141.9,0.12549]
[1728483914939,7.0457,141.94,141.9,0.12549]
[1728483915138,16.5171,141.95,141.9,0.12549]
[1728483915139,7.0457,141.93,141.9,0.12549]
[1728483916334,7.0457,141.93,141.89,7.0473]
[1728483917437,7.0462,141.92,141.89,0.25098]
[1728483918933,16.5171,141.95,141.85,23.776884]
[1728483919137,7.0475,141.9,141.86,7.0491]
[1728483919917,7.0468,141.91,141.87,7.0486]
[1728483921136,6.6193,141.92,141.87,7.0486]
[1728483921137,7.0472,141.9,141.87,7.0486]
[1728483921337,7.0482,141.88,141.84,7.05]
[1728483921645,6.6193,141.92,141.82,17.6268]
[1728483921943,7.0491,141.87,141.83,7.0505]
[1728483924248,32.9345,141.9,141.84,0.12549]
[1728483924429,7.0483,141.88,141.84,7.30108]
[1728483925331,7.0477,141.89,141.85,7.0493]
[1728483925524,15.3164,141.9,141.85,7.0493]
[1728483925525,22.3637,141.9,141.86,7.30008]
[1728483925927,7.0477,141.89,141.86,7.30008]
[1728483926133,22.3637,141.9,141.86,7.30008]
[1728483928644,7.0477,141.89,141.86,7.30008]
[1728483929042,7.0477,141.89,141.86,0.25098]
[1728483931641,7.0482,141.88,141.85,0.25098]
[1728483932341,7.0488,141.87,141.84,17.6247]
[1728483932574,15.3164,141.9,141.81,17.6286]
[1728483932764,7.0497,141.85,141.81,24.6801]
[1728483933424,7.0497,141.85,141.82,7.0511]
[1728483934046,7.0497,141.85,141.83,0.25098]
[1728483934225,7.0497,141.85,141.82,0.25098]
[1728483935944,7.0497,141.85,141.81,24.6801]
[1728483936127,7.0497,141.85,141.82,1.41011997]
[1728483936451,17.6194,141.89,141.82,1.41011997]
[1728483936631,7.0493,141.86,141.82,8.46091997]
[1728483936825,7.0493,141.86,141.83,1.40996154]
[1728483937025,15.3164,141.9,141.83,1.40996154]
[1728483937248,7.0483,141.88,141.84,7.0499]
[1728483939736,6.6193,141.92,141.85,24.027864]
[1728483939953,33.9052,141.95,141.89,7.0476]
[1728483939954,7.0458,141.93,141.89,7.0476]
[1728483940833,7.0458,141.93,141.89,8.45694672]
[1728483941030,7.0463,141.92,141.89,0.25098]
[1728483941645,7.0453,141.94,141.89,1.6603264]
[1728483941951,7.0453,141.94,141.89,0.25098]
[1728483942353,7.0453,141.94,141.89,1.66021053]
[1728483942955,16.2922,141.95,141.89,1.66021053]
[1728483943155,23.337,141.95,141.91,7.0467]
[1728483944132,52.8228,141.99,141.93,7.0456]
[1728483944133,40.507,141.99,141.93,7.0456]
[1728483944352,7.044,141.97,141.93,8.45461295]
[1728483945539,22.8998,141.99,141.94,0.25098]
[1728483945748,23.6011,141.99,141.95,7.0446]
[1728483945931,23.6011,141.99,141.94,17.86358]
[1728483945932,7.0437,141.97,141.94,17.86358]
[1728483946329,7.0433,141.98,141.94,24.90868]
[1728483948047,7.0427,141.99,141.95,7.0446]
[1728483948961,7.0432,141.98,141.94,24.90858]
[1728483950662,7.0428,141.99,141.95,7.0445]
[1728483950869,7.0428,141.99,141.95,8.45322326]
[1728483951374,7.0428,141.99,141.95,7.0445]
[1728483953276,7.0432,141.98,141.94,24.90858]
[1728483953854,7.0429,141.99,141.95,8.4534227]
[1728483954070,16.5284,142.03,141.96,0.25098]
[1728483954370,6.276,142.06,141.99,7.0424]
[1728483954674,7.0407,142.03,141.99,8.45073309]
[1728483954880,7.0407,142.03,141.99,7.0424]
[1728483955174,6.276,142.06,142.0,0.12549]
[1728483955369,7.0404,142.04,142.0,7.16769]
[1728483955870,7.0399,142.05,142.01,7.0415]
[1728483956178,7.0399,142.05,142.0,24.77259]
[1728483956472,7.0403,142.04,142.01,1.40821285]
[1728483957063,7.0403,142.04,142.01,0.12549]
[1728483957863,7.0407,142.03,142.0,17.73049]
[1728483958058,7.0412,142.02,141.99,23.902374]
[1728483958367,7.0412,142.02,142.0,0.12549]
[1728483958957,7.0409,142.03,142.0,1.53371267]
[1728483959159,7.0409,142.03,142.0,0.12549]
[1728483959371,7.0409,142.03,142.0,1.53370363]
[1728483960256,7.0409,142.03,142.0,0.12549]
[1728483961173,7.042,142.01,141.98,0.25098]
[1728483962604,7.042,142.01,141.98,1.65936963]
[1728483963079,7.0408,142.03,142.0,0.25098]
[1728483963252,7.0408,142.03,142.0,1.65915523]
[1728483965174,7.0408,142.03,142.0,0.25098]
[1728483970065,7.0408,142.03,142.0,1.65918382]
[1728483971971,7.0398,142.05,142.01,7.0415]
[1728483972196,7.0398,142.05,142.02,1.40803377]
[1728483972884,0.8313094,142.09,142.03,0.25098]
[1728483973085,0.8313094,142.09,142.05,24.027864]
[1728483973294,0.8313094,142.09,142.08,0.12549]
[1728483973461,0.8313094,142.09,142.08,8.69655167]
[1728483973660,0.8313094,142.09,142.08,52.47343567]
[1728483974582,0.8313094,142.09,142.08,51.066064]
[1728483975288,0.8313094,142.09,142.08,0.25098]
[1728483975976,0.8313094,142.09,142.07,20.25098]
[1728483976367,7.0382,142.08,142.04,103.3432]
[1728483976563,7.0382,142.08,142.05,0.12549]
[1728483976762,7.0388,142.07,142.03,7.0406]
[1728483976992,7.0398,142.05,142.01,24.6448]
[1728483977817,24.5039094,142.09,142.0,70.0]
[1728483977818,7.041,142.03,142.0,70.0]
[1728483977966,7.0416,142.02,141.98,24.6502]
[1728483978170,7.0416,142.02,141.97,77.0436]
[1728483979989,7.0416,142.02,141.98,24.027864]
[1728483980397,7.0427,142.0,141.96,20.0]
[1728483980565,15.6797,142.04,141.95,94.6555]
[1728483980566,26.209,142.02,141.95,17.6112]
[1728483980768,26.209,142.02,141.93,7.0456]
[1728483980769,7.0437,141.97,141.93,7.0456]
[1728483981002,7.0444,141.96,141.92,24.6609]
[1728483981372,7.0438,141.97,141.92,24.6609]
[1728483981568,20.0,142.0,141.92,24.6609]
[1728483981781,7.0442,141.96,141.92,24.6609]
[1728483981976,7.0448,141.95,141.91,7.0465]
[1728483982182,17.6073,141.99,141.89,24.6664]
[1728483982380,7.0457,141.93,141.89,24.6664]
[1728483982593,7.0448,141.95,141.9,71.40907681]
[1728483982782,7.0442,141.96,141.91,7.0463]
[1728483982985,20.0,141.98,141.91,7.0463]
[1728483983285,7.0447,141.95,141.91,7.0463]
[1728483984097,7.0447,141.95,141.92,0.25098]
[1728483984674,7.0447,141.95,141.92,1.65992221]
[1728483985077,7.0447,141.95,141.92,0.25098]
[1728483986702,16.613,141.97,141.9,24.027864]
[1728483986883,7.0466,141.92,141.87,7.0486]
[1728483987799,6.5072,141.95,141.87,7.0486]
[1728483988017,7.0467,141.91,141.87,7.0486]
[1728483988300,20.0,141.94,141.86,17.6224]
[1728483988501,17.6156,141.92,141.84,70.0]
[1728483988687,7.0478,141.89,141.85,7.0494]
[1728483989080,20.0,141.94,141.86,71.40950226]
[1728483989375,7.0462,141.92,141.88,7.0481]
[1728483989575,24.1196,141.95,141.88,7.0481]
[1728483989576,6.5072,141.95,141.88,70.0]
[1728483989884,7.0452,141.94,141.9,7.0471]
[1728483990293,7.0452,141.94,141.91,1.5346767]
[1728483990997,6.5072,141.95,141.91,1.5346767]
[1728483990998,6.5072,141.95,141.91,8.5811767]
[1728483991220,7.0446,141.96,141.91,8.5811767]
[1728483991380,16.613,141.97,141.92,0.12549]
[1728483991581,16.613,141.97,141.93,8.45428524]
[1728483991781,13.1552,141.98,141.94,0.25098]
[1728483992006,7.0438,141.97,141.94,0.25098]
[1728483994781,6.112,141.98,141.91,17.6161]
[1728483995394,7.0458,141.93,141.89,7.0476]
[1728483995602,7.0458,141.93,141.9,1.40916374]
[1728483995802,37.6103,141.97,141.88,17.6195]
[1728483995993,20.0,141.97,141.86,70.0]
[1728483996196,7.0473,141.9,141.86,7.0491]
[1728483996382,7.0473,141.9,141.85,24.6731]
[1728483996782,7.0482,141.88,141.85,17.6236]
[1728483997388,7.0478,141.89,141.85,17.6236]
[1728483997690,7.0478,141.89,141.85,24.6732]
[1728483998288,13.6699,141.91,141.87,7.0486]
[1728483998617,7.0473,141.9,141.86,7.29998]
[1728483998914,7.0473,141.9,141.86,8.70956884]
[1728483999816,7.0473,141.9,141.86,7.29998]
[1728484000705,26.1098,141.95,141.89,0.25098]
[1728484000907,7.0458,141.93,141.89,7.29858]
[1728484001109,7.0458,141.93,141.9,1.40924844]
[1728484002315,7.0452,141.94,141.9,8.45634844]
[1728484003510,16.2326,141.96,141.91,17.86738]
[1728484003713,7.0443,141.96,141.92,8.45492351]
[1728484003917,40.0856,141.99,141.93,7.0456]
[1728484003918,7.0438,141.97,141.93,7.0456]
[1728484004221,22.4778,141.99,141.94,8.45385961]
[1728484004387,22.4778,141.99,141.93,17.6138]
[1728484004586,7.0442,141.96,141.93,17.6138]
[1728484005212,7.0442,141.96,141.93,19.02270067]
[1728484005397,22.4778,141.99,141.91,0.25098]
[1728484005598,20.0,141.98,141.91,0.25098]
[1728484005807,7.046,141.93,141.91,0.12549]
[1728484006524,7.0453,141.94,141.91,0.12549]
[1728484007415,17.6086,141.98,141.91,0.12549]
[1728484007416,7.0449,141.95,141.91,8.58084818]
[1728484007812,7.0444,141.96,141.92,7.17169]
[1728484007994,7.0444,141.96,141.93,1.40893644]
[1728484008511,7.0441,141.97,141.94,0.25098]
[1728484011998,22.4778,141.99,141.94,25.4366423]
[1728484012208,7.0428,141.99,141.96,0.12549]
[1728484012410,7.0428,141.99,141.96,1.53405796]
[1728484012601,7.0424,142.0,141.96,8.57815796]
[1728484013616,7.0428,141.99,141.96,1.53405796]
[1728484014004,7.0424,142.0,141.96,8.57825796]
[1728484014206,7.0419,142.01,141.97,7.0434]
[1728484014428,7.0419,142.01,141.98,1.40847424]
[1728484014792,7.0422,142.0,141.98,1.40847424]
[1728484014995,7.0422,142.0,141.97,1.4084806]
[1728484016004,7.0422,142.0,141.98,0.12549]
[1728484017221,6.216,142.03,141.98,0.25098]
[1728484017401,22.5424,142.06,142.0,0.25098]
[1728484017597,7.0399,142.05,142.01,8.44981119]
[1728484017800,7.0399,142.05,142.02,0.12549]
[1728484018109,7.0399,142.05,142.02,7.16669]
[1728484018307,7.0399,142.05,142.03,1.40800948]
[1728484018517,7.0399,142.05,142.02,1.53349999]
[1728484018727,7.0399,142.05,142.02,0.12549]
[1728484019018,7.0402,142.04,142.02,0.12549]
[1728484019506,7.0402,142.04,142.02,1.53354153]
[1728484019704,20.0,142.07,142.02,0.12549]
[1728484019916,7.0398,142.05,142.02,0.12549]
[1728484020137,7.0398,142.05,142.02,1.53346981]
[1728484020419,7.0398,142.05,142.02,0.12549]
[1728484021297,7.0403,142.04,142.02,0.12549]
[1728484021721,20.0,142.07,142.02,1.53353357]
[1728484021913,7.0398,142.05,142.02,1.53353357]
[1728484022224,20.0,142.07,142.03,7.16619]
[1728484022225,7.0389,142.07,142.03,7.16619]
[1728484022431,7.0393,142.06,142.03,0.12549]
[1728484022653,7.0402,142.04,142.03,0.12549]
[1728484022922,18.4259094,142.09,142.03,0.12549]
[1728484022923,7.0398,142.05,142.03,0.12549]
[1728484023301,7.0398,142.05,142.02,0.25098]
[1728484024145,17.5971,142.07,142.02,1.40794167]
[1728484024428,17.5971,142.07,141.99,70.12549]
[1728484024612,17.5971,142.07,142.01,0.12549]
[1728484024822,17.5971,142.07,141.99,70.12549]
[1728484025207,7.0408,142.03,141.99,7.16789]
[1728484025402,7.0408,142.03,142.0,0.12549]
[1728484026107,7.0431,141.99,141.95,17.611]
[1728484026326,7.0425,142.0,141.96,1.40858235]
[1728484026550,7.0418,142.01,141.96,1.40858235]
[1728484026730,7.0418,142.01,141.97,7.0432]
[1728484026917,22.6949,142.04,141.98,1.40831376]
[1728484027122,7.0396,142.06,142.02,7.0412]
[1728484027318,7.0396,142.06,142.03,1.40799804]
[1728484027625,7.0393,142.06,142.03,1.40799804]
[1728484027823,6.3252,142.07,142.01,24.6457]
[1728484027824,7.0398,142.05,142.01,24.6457]
[1728484028144,7.0398,142.05,142.02,0.25098]
[1728484028342,7.0398,142.05,142.02,1.65895534]
[1728484029220,7.0398,142.05,142.02,0.25098]
[1728484029530,7.0403,142.04,142.02,0.25098]
[1728484029723,7.0403,142.04,142.01,0.25098]
[1728484030646,7.0398,142.05,142.01,7.29258]
[1728484031939,7.0407,142.03,142.01,0.25098]
[1728484032144,7.0412,142.02,141.98,7.0428]
[1728484032444,7.042,142.01,141.99,1.40822755]
[1728484032631,17.5995,142.05,141.99,1.40822755]
[1728484032830,7.0409,142.03,141.99,8.45092755]
[1728484033140,7.0403,142.04,142.0,7.0421]
[1728484033319,7.0399,142.05,142.01,8.44964247]
[1728484033639,27.22460447,142.07,142.03,7.0405]
[1728484033851,16.0897,142.08,142.04,1.40785491]
[1728484033852,7.0392,142.06,142.04,1.40785491]
[1728484034031,7.0392,142.06,142.03,0.12549]
[1728484034821,7.0401,142.05,142.03,1.40785785]
[1728484035149,16.0897,142.08,142.03,1.40785785]
[1728484035447,7.0396,142.06,142.03,1.40785785]
[1728484035647,7.0396,142.06,142.02,7.16659]
[1728484036140,7.0396,142.06,142.03,0.12549]
[1728484037235,0.8313094,142.09,142.07,7.0384]
[1728484037422,0.8313094,142.09,142.05,17.72479]
[1728484037624,7.0383,142.08,142.05,0.12549]
[1728484038129,7.8691094,142.09,142.06,0.12549]
[1728484039336,0.8313094,142.09,142.08,7.28918]
[1728484039544,0.8313094,142.09,142.08,85.33494818]
[1728484041546,0.8313094,142.09,142.08,92.37314818]
[1728484042751,0.8313094,142.09,142.08,7.28918]
[1728484043044,0.8313094,142.09,142.08,78.69637922]
[1728484043223,0.8313094,142.09,142.08,77.28918]
[1728484043844,0.8313094,142.09,142.04,77.0399]
[1728484043845,7.8694094,142.09,142.04,77.0399]
[1728484044042,0.8313094,142.09,142.05,1.40757032]
[1728484044556,0.8313094,142.09,142.06,70.0]
[1728484044736,0.8313094,142.09,142.07,1.40736458]
[1728484045134,0.8313094,142.09,142.08,7.0382]
[1728484045340,0.8313094,142.09,142.08,8.69648459]
[1728484046430,0.8313094,142.09,142.08,7.28918]
[1728484047032,0.8313094,142.09,142.08,0.25098]
[1728484049461,0.8313094,142.09,142.07,0.12549]
[1728484049641,7.8695094,142.09,142.07,0.12549]
[1728484049953,0.8313094,142.09,142.05,0.12549]
[1728484050153,0.8313094,142.09,142.04,17.5998]
[1728484050154,7.0386,142.08,142.04,24.6398]
[1728484050364,7.0398,142.05,142.01,24.6451]
[1728484050734,17.5959,142.08,142.02,1.40785733]
[1728484050934,7.0388,142.07,142.03,7.0406]
[1728484051136,7.0392,142.06,142.02,7.041]
[1728484051449,7.0389,142.07,142.03,7.0407]
[1728484051935,0.8313094,142.09,142.04,1.65867749]
[1728484052137,0.8313094,142.09,142.05,17.5992]
[1728484052355,0.8313094,142.09,142.08,7.0382]
[1728484052677,0.8313094,142.09,142.08,8.57112975]
[1728484053159,0.8313094,142.09,142.08,7.28918]
[1728484057541,0.8313094,142.09,142.08,0.25098]
[1728484057742,0.8313094,142.09,142.04,87.6003]
[1728484058149,7.8694094,142.09,142.05,7.0394]